bitfinex/quotes_ETHUSD_20250722
["timestamp","ask_amount","ask_price","bid_price","bid_amount"]
[1753189878977,0.002,3702.2,3702.1,0.25055456]
[1753189878978,2.70309664,3702.2,3702.1,0.25055456]
[1753189879287,4.0321311,3702.2,3702.1,0.25055456]
[1753189879583,4.4673311,3702.2,3702.1,0.25055456]
[1753189879743,3.91329664,3702.2,3702.1,0.25055456]
[1753189879944,0.002,3702.2,3702.1,0.25055456]
[1753189880178,2.70309664,3702.2,3702.1,0.25055456]
[1753189880481,0.002,3702.2,3702.1,0.25055456]
[1753189881044,2.70309664,3702.2,3702.1,0.25055456]
[1753189881250,2.70309664,3702.2,3702.1,0.25061551]
[1753189881584,3.13829664,3702.2,3702.1,0.25061551]
[1753189881781,2.70309664,3702.2,3702.1,0.25061551]
[1753189881945,0.002,3702.2,3702.1,0.25061551]
[1753189882150,2.70309664,3702.2,3702.1,0.25061551]
[1753189882662,0.002,3702.2,3702.1,0.25061551]
[1753189883117,0.4372,3702.2,3702.1,0.25061551]
[1753189883400,3.13829664,3702.2,3702.1,0.25061551]
[1753189884481,4.85082747,3702.2,3702.1,0.25061551]
[1753189884884,7.85082747,3702.2,3702.1,0.25061551]
[1753189885082,7.85082747,3702.2,3700.5,6.70230125]
[1753189885083,2.702137,3700.8,3700.5,4.0]
[1753189885282,2.702137,3700.8,3700.4,4.4804]
[1753189885578,2.37793816,3700.8,3700.4,4.92844]
[1753189885778,2.70206862,3700.9,3700.4,0.58244]
[1753189885968,2.70233752,3700.5,3700.4,0.1344]
[1753189886308,0.4352,3700.8,3699.7,0.8252]
[1753189886506,0.7971,3700.3,3699.7,4.4794]
[1753189886671,2.70276624,3700.0,3699.7,4.4794]
[1753189886872,3.49959349,3700.3,3699.7,4.92734]
[1753189887070,0.7971,3700.3,3699.8,2.7028488]
[1753189887405,2.83681859,3700.4,3699.7,7.63024392]
[1753189887769,0.1344,3700.4,3699.8,2.70284689]
[1753189888192,2.83681298,3700.4,3699.8,2.70284689]
[1753189888389,2.70248358,3700.3,3699.8,1.07615513]
[1753189888600,2.7026988,3700.1,3699.8,1.07615513]
[1753189888800,2.7026988,3700.1,3699.7,4.4734]
[1753189889206,0.1344,3700.4,3699.8,2.70284591]
[1753189889389,2.83681597,3700.4,3699.7,7.60461477]
[1753189889593,0.1344,3700.4,3699.9,2.70276907]
[1753189890165,0.1344,3700.4,3699.9,0.4283]
[1753189890370,0.1344,3700.4,3700.0,2.70268787]
[1753189890711,2.70100326,3702.4,3700.1,0.4283]
[1753189890921,3.891,3701.0,3700.3,0.1344]
[1753189891069,2.70204713,3700.9,3700.3,2.83687473]
[1753189891567,0.002,3700.7,3700.3,2.83687473]
[1753189891768,0.002,3700.7,3700.3,0.1344]
[1753189892003,0.002,3700.7,3700.3,2.83685779]
[1753189892214,0.002,3700.7,3700.4,2.70240426]
[1753189892438,0.002,3700.7,3700.3,0.1344]
[1753189892573,2.70246519,3700.4,3700.0,0.1344]
[1753189892775,0.4352,3700.4,3700.0,0.1344]
[1753189893084,2.70235901,3700.5,3700.0,0.1344]
[1753189893494,2.70242404,3700.4,3700.0,0.1344]
[1753189893668,2.70235246,3700.5,3700.0,0.1344]
[1753189893872,2.83668847,3700.6,3700.0,0.1344]
[1753189894105,2.70233781,3700.5,3700.0,0.1344]
[1753189894276,0.1344,3700.6,3700.0,0.1344]
[1753189894484,0.1344,3700.6,3700.0,0.5627]
[1753189894883,2.70245616,3700.4,3700.0,0.1344]
[1753189895109,2.70236674,3700.5,3700.0,0.1344]
[1753189895303,2.83669019,3700.6,3700.0,0.1344]
[1753189895692,2.70234375,3700.5,3700.0,0.1344]
[1753189895897,2.70242088,3700.4,3700.0,0.1344]
[1753189896290,3.49120002,3700.2,3699.6,2.70298436]
[1753189896606,3.49120002,3700.2,3699.8,4.327]
[1753189896809,0.7886,3700.2,3699.8,4.327]
[1753189897001,0.7792,3700.7,3699.9,0.25190417]
[1753189897199,2.70239276,3700.5,3700.0,0.38630417]
[1753189897402,2.70255661,3700.2,3700.1,0.25190417]
[1753189897585,2.70250663,3700.3,3700.1,0.25190417]
[1753189897781,3.13768358,3700.3,3700.2,0.25190417]
[1753189898031,0.1344,3700.4,3700.2,0.25190417]
[1753189898324,2.70256969,3700.2,3699.8,4.4614]
[1753189898482,2.7025036,3700.3,3699.9,0.25189628]
[1753189898685,2.7025036,3700.3,3700.0,0.25189628]
[1753189898881,2.7025036,3700.3,3700.1,0.25189628]
[1753189899226,3.1377036,3700.3,3700.2,0.25189628]
[1753189901113,3.9377036,3700.3,3700.2,0.25189628]
[1753189901515,4.61514837,3700.3,3700.2,0.25189628]
[1753189901719,2.70299892,3699.6,3699.3,4.313]
[1753189901881,2.37869689,3699.6,3699.4,0.25200475]
[1753189902080,2.37869689,3699.6,3699.5,0.25200475]
[1753189902708,2.70294204,3699.7,3699.5,0.25200475]
[1753189902908,2.70294204,3699.7,3699.6,0.25200475]
[1753189903511,0.1344,3699.8,3699.6,0.25200475]
[1753189903700,0.1344,3699.8,3699.7,0.25200475]
[1753189904297,4.7482,3700.4,3699.7,0.25200475]
[1753189904298,0.4352,3700.4,3699.7,0.25200475]
[1753189904516,0.1344,3700.1,3699.8,0.25200475]
[1753189904825,3.002,3700.7,3699.9,0.25200475]
[1753189904826,0.7883,3700.6,3699.9,0.25200475]
[1753189904984,0.1344,3700.5,3700.0,2.95463858]
[1753189905328,0.1344,3700.5,3700.1,3.57932877]
[1753189905616,0.1344,3700.5,3700.2,0.25200475]
[1753189905818,0.1344,3700.5,3700.3,0.25200475]
[1753189905993,0.1344,3700.5,3700.4,0.25200475]
[1753189907496,0.1344,3700.5,3700.1,0.62471316]
[1753189907702,0.1344,3700.5,3700.2,0.25186654]
[1753189907927,0.1344,3700.5,3700.3,0.25186654]
[1753189908218,0.1344,3700.5,3700.4,0.25186623]
[1753189908532,0.002,3700.7,3700.4,0.25186623]
[1753189908723,0.002,3700.7,3700.5,0.25186623]
[1753189908885,0.002,3700.7,3700.6,0.25186623]
[1753189910218,2.70419147,3700.7,3700.6,0.25186623]
[1753189910815,0.002,3700.7,3700.6,0.25186623]
[1753189911319,2.70419147,3700.7,3700.6,0.25186623]
[1753189911526,0.002,3700.7,3700.6,0.25186623]
[1753189913109,2.70419147,3700.7,3700.6,0.25186623]
[1753189913908,0.002,3700.7,3700.6,0.25186623]
[1753189917614,0.002,3700.7,3700.6,2.95413072]
[1753189917805,0.002,3700.7,3700.6,3.42213072]
[1753189918611,0.002,3700.8,3700.7,2.70219147]
[1753189918832,0.002,3700.8,3700.7,3.44907961]
[1753189919012,0.002,3700.8,3700.7,3.5564577]
[1753189919515,0.002,3700.8,3700.7,3.58347961]
[1753189919913,4.282,3701.3,3700.9,2.70203734]
[1753189920113,4.282,3701.3,3701.0,0.25186623]
[1753189920417,4.282,3701.3,3701.1,0.25186623]
[1753189920418,2.70177231,3701.3,3701.1,0.25186623]
[1753189920612,2.70177231,3701.3,3701.2,0.25186623]
[1753189921054,3.17367231,3701.3,3701.2,0.25186623]
[1753189921545,0.4719,3701.3,3701.2,0.25270822]
[1753189921728,2.70179686,3701.3,3701.2,0.25270822]
[1753189922423,7.11808218,3701.4,3701.2,0.25270822]
[1753189922627,7.11808218,3701.4,3701.3,0.25270822]
[1753189922923,0.1344,3701.4,3701.3,0.25270822]
[1753189923256,7.11808044,3701.4,3701.3,0.25270822]
[1753189923566,4.4164,3701.4,3701.3,0.25270822]
[1753189923848,0.1344,3701.4,3701.3,0.25270822]
[1753189924149,4.282,3701.4,3701.3,0.25270822]
[1753189924448,4.282,3701.4,3701.3,0.25247049]
[1753189924948,6.98561644,3701.5,3701.3,0.25247049]
[1753189925112,4.284,3701.5,3701.4,0.25247049]
[1753189925737,6.98560745,3701.5,3701.4,0.25247049]
[1753189926250,7.78560745,3701.5,3701.4,0.25247049]
[1753189926743,5.084,3701.5,3701.4,0.25247049]
[1753189926930,7.78560745,3701.5,3701.4,0.25247049]
[1753189927243,13.10875544,3701.5,3701.4,0.25247049]
[1753189927829,27.60875544,3701.5,3701.4,0.25247049]
[1753189929761,23.32675544,3701.5,3701.4,0.25247049]
[1753189929964,27.60775544,3701.5,3701.4,0.25247049]
[1753189931947,2.70202284,3701.0,3700.5,0.468]
[1753189932265,3.9567933,3700.9,3700.6,0.25237968]
[1753189932466,6.65888994,3700.9,3700.7,0.25237968]
[1753189932768,6.65888994,3700.9,3700.8,0.25237968]
[1753189933134,6.65888994,3700.9,3700.5,0.78504633]
[1753189933335,6.65888994,3700.9,3700.6,0.50500058]
[1753189933529,3.9567933,3700.9,3700.7,0.25250029]
[1753189933755,3.9567933,3700.9,3700.6,0.25250029]
[1753189933756,3.9567933,3700.9,3700.8,0.25250029]
[1753189934171,6.65883874,3700.9,3700.8,0.25250029]
[1753189934470,6.98304544,3700.9,3700.8,0.25250029]
[1753189934837,4.281,3700.9,3700.8,0.25250029]
[1753189935085,6.98304544,3700.9,3700.8,0.25250029]
[1753189935687,6.98304544,3700.9,3700.8,0.25350029]
[1753189935899,4.281,3700.9,3700.8,0.25350029]
[1753189936381,6.98304544,3700.9,3700.8,0.25350029]
[1753189936596,6.98304544,3700.9,3700.8,0.25366014]
[1753189936885,8.27604544,3700.9,3700.8,0.25366014]
[1753189937091,6.98304544,3700.9,3700.8,0.25366014]
[1753189938271,2.70204544,3700.9,3700.8,0.25366014]
[1753189938599,4.281,3700.9,3700.8,0.25366014]
[1753189938750,6.98304544,3700.9,3700.8,0.25366014]
[1753189939078,5.70219147,3700.7,3700.6,0.25250029]
[1753189939284,10.79029147,3700.7,3700.6,0.25250029]
[1753189939574,11.25289147,3700.7,3700.6,0.25250029]
[1753189941168,6.97289147,3700.7,3700.6,0.25250029]
[1753189942461,25.75289147,3700.7,3700.6,0.25250029]
[1753189942885,25.29029147,3700.7,3700.6,0.25250029]
[1753189943582,21.01029147,3700.7,3700.6,0.25250029]
[1753189943786,25.29029147,3700.7,3700.6,0.25250029]
[1753189944377,26.2519223,3700.7,3700.6,0.25250029]
[1753189944685,21.9719223,3700.7,3700.6,0.25250029]
[1753189944868,26.7145223,3700.7,3700.6,0.25250029]
[1753189945586,12.2145223,3700.7,3700.6,0.25250029]
[1753189945995,26.7145223,3700.7,3700.6,0.25250029]
[1753189949066,5.70262965,3700.1,3700.0,0.001]
[1753189949267,10.78842965,3700.1,3700.0,0.001]
[1753189949469,50.09310372,3700.1,3700.0,1e-08]
[1753189949669,50.98397828,3700.1,3700.0,1e-08]
[1753189949869,52.91211737,3700.1,3700.0,1e-08]
[1753189950075,67.41211737,3700.1,3700.0,1e-08]
[1753189950270,67.07124281,3700.1,3700.0,1e-08]
[1753189951601,67.07024281,3700.1,3700.0,1e-08]
[1753189953297,67.41111737,3700.1,3700.0,1e-08]
[1753189953664,73.89711737,3700.1,3700.0,1e-08]
[1753189954067,2.70321412,3699.3,3699.2,0.001]
[1753189954263,2.70321412,3699.3,3699.0,0.001]
[1753189954264,2.70336027,3699.1,3699.0,0.001]
[1753189954476,10.78486027,3699.1,3699.0,0.001]
[1753189954697,25.74746027,3699.1,3699.0,0.001]
[1753189955203,2.70372573,3698.6,3698.3,0.001]
[1753189955366,6.98272573,3698.6,3698.3,0.001]
[1753189956067,7.78422573,3698.6,3698.3,0.001]
[1753189956292,9.30917372,3698.6,3698.3,0.001]
[1753189957003,8.84657372,3698.6,3698.3,0.001]
[1753189957309,9.30917372,3698.6,3698.3,0.001]
[1753189958613,23.80917372,3698.6,3698.3,0.001]
[1753189958942,3.0,3697.8,3696.8,0.1352]
[1753189959141,3.0,3697.8,3696.7,0.7774]
[1753189959142,2.70482269,3697.1,3697.0,0.001]
[1753189959317,6.98482269,3697.1,3697.0,0.001]
[1753189959842,2.70465491,3697.4,3697.0,0.001]
[1753189960144,0.1352,3697.1,3697.0,0.4293]
[1753189960288,4.4152,3697.1,3697.0,0.4293]
[1753189961087,7.12002269,3697.1,3697.0,0.6803583]
[1753189961417,4.4152,3697.1,3697.0,0.6803583]
[1753189961633,7.12002269,3697.1,3697.0,0.6803583]
[1753189962121,7.12002269,3697.1,3697.0,0.2520583]
[1753189962320,4.4152,3697.1,3697.0,0.2520583]
[1753189962520,0.1352,3697.1,3697.0,0.2520583]
[1753189962722,4.4152,3697.1,3697.0,0.6803583]
[1753189963190,0.1352,3697.1,3697.0,1.09642492]
[1753189963394,4.28,3697.1,3697.0,1.46475008]
[1753189963741,4.28,3697.2,3697.0,1.46475008]
[1753189963937,2.83988337,3697.3,3697.1,0.67915008]
[1753189964118,4.28,3697.2,3697.1,0.4283]
[1753189964424,4.28,3697.2,3697.1,0.67901582]
[1753189964922,6.98474954,3697.2,3697.1,0.25071582]
[1753189965137,2.70533492,3696.4,3695.9,0.001]
[1753189965349,10.75613492,3696.4,3695.9,0.001]
[1753189965636,12.43489114,3696.4,3695.9,0.001]
[1753189966726,11.20149114,3696.4,3695.9,0.001]
[1753189966892,9.98533492,3696.4,3695.9,0.001]
[1753189967429,5.70533492,3696.4,3695.9,0.001]
[1753189967593,3.0,3696.4,3696.0,0.432]
[1753189967791,7.279,3696.4,3696.3,0.433]
[1753189968115,2.7048961,3697.0,3696.3,0.433]
[1753189968311,1.6072,3697.1,3696.3,0.433]
[1753189968312,3.0,3696.6,3696.3,0.433]
[1753189968508,4.28,3696.5,3696.3,0.433]
[1753189968710,2.70533492,3696.4,3696.3,0.001]
[1753189969499,4.28,3696.5,3696.3,0.001]
[1753189969722,4.28,3696.4,3696.3,0.001]
[1753189970042,4.28,3696.4,3696.3,0.433]
[1753189970596,2.70513183,3696.7,3696.3,0.433]
[1753189970894,2.70495089,3697.0,3696.5,0.7863]
[1753189971093,9.98498191,3696.9,3696.6,0.432]
[1753189971593,7.28,3696.9,3696.6,0.432]
[1753189971792,7.28,3696.9,3696.7,0.432]
[1753189972217,4.28,3696.8,3696.5,0.7863]
[1753189972530,4.28,3696.7,3696.5,0.7863]
[1753189972731,4.28,3696.6,3696.5,0.7863]
[1753189973336,5.70489586,3697.0,3696.5,0.7863]
[1753189973500,0.8,3697.1,3696.5,0.7863]
[1753189973501,6.98497527,3696.9,3696.5,0.7863]
[1753189973699,6.98497527,3696.9,3696.6,0.432]
[1753189973909,4.28,3696.8,3696.7,0.432]
[1753189974111,4.28,3696.8,3696.5,0.7863]
[1753189974429,4.28,3696.7,3696.5,3.49155576]
[1753189974632,0.8,3697.1,3696.6,0.432]
[1753189974846,0.8,3697.1,3697.0,3.52359586]
[1753189975045,0.7654,3698.1,3697.0,1.2507]
[1753189975046,3.0,3697.5,3697.0,1.2507]
[1753189975332,0.1352,3697.3,3697.0,3.52359586]
[1753189975531,4.279,3697.2,3697.1,0.432]
[1753189977236,4.279,3697.2,3697.1,0.6829236]
[1753189977619,2.83987741,3697.3,3697.1,0.2509236]
[1753189977818,4.279,3697.2,3697.0,0.8187]
[1753189978028,4.279,3697.2,3697.1,0.25111976]
[1753189978444,0.1352,3697.3,3697.1,0.25111976]
[1753189978615,0.1352,3697.3,3697.2,0.25111976]
[1753189978815,4.4132,3697.3,3697.2,0.25111976]
[1753189979141,0.1352,3697.3,3697.2,0.68311976]
[1753189979445,4.4132,3697.3,3697.2,0.68311976]
[1753189979621,0.1352,3697.3,3697.2,0.68311976]
[1753189979819,4.4132,3697.3,3697.2,0.68311976]
[1753189980218,4.08867733,3697.3,3697.2,0.68311976]
[1753189980745,4.278,3697.3,3697.2,0.68367918]
[1753189981144,4.278,3697.3,3697.2,0.25167918]
[1753189981442,7.69444418,3697.3,3697.2,0.25167918]
[1753189982320,2.70467638,3697.3,3697.2,0.25167918]
[1753189982506,0.1352,3697.4,3697.2,0.25167918]
[1753189982507,0.1352,3697.4,3697.3,0.7555]
[1753189982712,4.278,3697.4,3697.3,1.43917918]
[1753189982948,0.1352,3697.7,3697.3,4.14383034]
[1753189983121,0.1352,3697.7,3697.4,0.25167918]
[1753189983122,4.278,3697.6,3697.4,0.25167918]
[1753189983329,4.278,3697.6,3697.5,0.68367918]
[1753189983659,3.1352,3697.7,3697.5,0.68367918]
[1753189983845,3.1352,3697.7,3697.5,0.432]
[1753189984033,3.1352,3697.7,3697.6,0.252031]
[1753189984242,4.277,3697.7,3697.6,0.684031]
[1753189984408,4.277,3697.7,3697.6,0.83068878]
[1753189985032,4.277,3697.8,3697.6,0.83068878]
[1753189985219,4.277,3697.8,3697.7,0.684031]
[1753189986543,4.276,3697.8,3697.7,0.684031]
[1753189986923,4.276,3697.8,3697.7,0.252031]
[1753189987533,6.98031067,3697.8,3697.7,0.252031]
[1753189988054,2.70431067,3697.8,3697.7,0.252031]
[1753189988349,6.98031067,3697.8,3697.7,0.252031]
[1753189989131,4.276,3697.8,3697.7,0.252031]
[1753189989343,6.98031067,3697.8,3697.7,0.252031]
[1753189989743,6.98031067,3697.8,3697.7,0.684031]
[1753189990143,4.276,3697.8,3697.7,0.684031]
[1753189990457,6.65582083,3697.8,3697.7,0.684031]
[1753189990652,2.70431067,3697.8,3697.7,0.684031]
[1753189990822,6.97931067,3697.8,3697.7,0.684031]
[1753189991556,0.1352,3697.9,3697.7,0.68420737]
[1753189991755,2.83944126,3697.9,3697.8,0.25218811]
[1753189991927,7.11444126,3697.9,3697.8,0.68419083]
[1753189992528,2.83944126,3697.9,3697.8,0.25219083]
[1753189992728,7.11343754,3697.9,3697.8,0.25219083]
[1753189992951,4.4092,3697.9,3697.8,0.68419083]
[1753189993149,0.1352,3697.9,3697.8,1.47449083]
[1753189993349,0.1344,3698.5,3698.0,2.70415429]
[1753189993556,4.274,3698.4,3698.1,0.68419083]
[1753189993755,0.1344,3698.5,3698.2,0.68419083]
[1753189993952,0.002,3698.6,3698.5,2.70379883]
[1753189994151,0.002,3698.6,3698.5,2.95598966]
[1753189994354,0.002,3698.6,3698.5,3.38798966]
[1753189994662,0.002,3698.6,3698.5,4.17652764]
[1753189994827,0.002,3698.7,3698.6,2.70372573]
[1753189995032,0.002,3698.7,3698.6,5.37372522]
[1753189995228,1e-08,3698.7,3698.6,13.33212522]
[1753189995457,1e-08,3698.7,3698.6,13.30508797]
[1753189995932,1e-08,3698.7,3698.6,17.30508797]
[1753189997443,0.1344,3700.5,3700.2,3.51420317]
[1753189997656,2.70410329,3700.9,3700.3,3.40946102]
[1753189997657,4.275,3700.9,3700.3,3.40946102]
[1753189997857,3.0,3700.8,3700.4,0.25118407]
[1753189998168,0.1364,3700.9,3700.5,2.95351131]
[1753189998470,0.1364,3700.9,3700.6,0.25118407]
[1753189998768,0.1364,3700.9,3700.7,0.25118407]
[1753189998993,2.83845506,3700.9,3700.8,0.25095762]
[1753189999443,0.1364,3700.9,3700.8,0.25095762]
[1753189999873,2.83844544,3700.9,3700.8,0.25095762]
[1753190000239,0.1364,3700.9,3700.8,0.25095762]
[1753190000933,2.83844544,3700.9,3700.8,0.25095762]
[1753190001139,0.1364,3700.9,3700.8,0.25095762]
[1753190001563,2.83844544,3700.9,3700.8,0.25095762]
[1753190002849,7.10844544,3700.9,3700.8,0.25095762]
[1753190004646,4.4064,3700.9,3700.8,0.25095762]
[1753190004846,7.10844544,3700.9,3700.8,0.25095762]
[1753190005671,0.1364,3700.9,3700.8,0.25095762]
[1753190005939,0.002,3700.9,3700.8,0.25095762]
[1753190006145,4.271,3700.9,3700.8,0.70675762]
[1753190006969,0.002,3700.9,3700.8,0.25095762]
[1753190008556,2.83844544,3700.9,3700.8,0.25095762]
[1753190009152,3.31174544,3700.9,3700.8,0.25095762]
[1753190009346,0.1364,3700.9,3700.8,0.25095762]
[1753190009647,7.10544544,3700.9,3700.8,0.25095762]
[1753190010273,7.80544544,3700.9,3700.8,0.25095762]
[1753190010674,9.6881808,3700.9,3700.8,0.25095762]
[1753190011248,9.6881808,3700.9,3699.9,0.9107]
[1753190011249,2.70235648,3700.5,3699.9,0.9107]
[1753190011450,4.266,3700.4,3700.0,0.25028831]
[1753190011788,4.266,3700.4,3700.1,0.25028831]
[1753190011957,4.266,3700.4,3700.2,0.25028831]
[1753190012290,4.266,3700.4,3700.3,0.25036527]
[1753190013461,0.7607,3700.9,3700.3,0.70616527]
[1753190013462,0.002,3700.9,3700.3,0.70616527]
[1753190013788,4.266,3700.7,3700.4,0.70616527]
[1753190013959,4.266,3700.7,3700.5,0.70616527]
[1753190014297,4.266,3700.7,3700.6,0.25036527]
[1753190014588,7.73129147,3700.7,3700.6,0.25036527]
[1753190014793,11.90459147,3700.7,3700.6,0.25036527]
[1753190015152,26.40459147,3700.7,3700.6,0.25036527]
[1753190015349,24.36438323,3700.7,3700.6,0.25036527]
[1753190015582,28.62938323,3700.7,3700.6,0.25036527]
[1753190015853,29.10268323,3700.7,3700.6,0.25036527]
[1753190018086,2.70261104,3700.2,3699.5,3.15884771]
[1753190018288,4.264,3700.1,3699.6,0.2509618]
[1753190018490,4.264,3700.0,3699.7,0.7067618]
[1753190018692,3.939723,3700.0,3699.8,0.2509618]
[1753190018889,3.939723,3700.0,3699.9,0.2509618]
[1753190019089,3.939723,3700.0,3699.9,0.7067618]
[1753190019285,4.264,3700.1,3700.0,0.8154]
[1753190019590,4.264,3700.1,3700.0,1.5221618]
[1753190019785,4.264,3700.1,3700.0,1.2712]
[1753190019988,4.264,3700.1,3700.0,1.5224949]
[1753190020188,4.264,3700.2,3700.0,1.5224949]
[1753190020390,4.264,3700.2,3700.1,0.7070949]
[1753190021393,6.96655661,3700.2,3700.1,0.2512949]
[1753190023959,2.70266803,3700.1,3699.6,0.7853]
[1753190024164,4.263,3700.0,3699.7,0.25252703]
[1753190024388,3.93870501,3700.0,3699.8,0.25252703]
[1753190024595,3.93870501,3700.0,3699.6,1.2411]
[1753190024596,3.93870501,3700.0,3699.9,0.25252703]
[1753190025001,3.93870501,3700.0,3699.9,0.70832703]
[1753190025208,4.262,3700.0,3699.9,1.14141928]
[1753190025368,3.1344,3700.4,3699.9,3.84417881]
[1753190025569,3.1344,3700.4,3700.0,0.70832703]
[1753190025769,4.262,3700.3,3700.1,0.70832703]
[1753190025971,0.1344,3700.4,3700.2,0.25252703]
[1753190026246,0.1344,3700.4,3700.3,0.25252703]
[1753190026504,7.09881055,3700.4,3700.3,0.25252703]
[1753190027524,2.83681055,3700.4,3700.3,0.25252703]
[1753190027675,7.09881055,3700.4,3700.3,0.25252703]
[1753190028819,6.9089332,3700.4,3700.3,0.25252703]
[1753190029176,18.8954,3700.4,3700.3,0.25252703]
[1753190030068,21.59781055,3700.4,3700.3,0.25252703]
[1753190033134,7.09781055,3700.4,3700.3,0.25252703]
[1753190033502,2.83681055,3700.4,3700.3,0.25252703]
[1753190033709,21.59581055,3700.4,3700.3,0.25252703]
[1753190034332,27.09561985,3700.4,3700.3,0.25252703]
[1753190034536,28.31201985,3700.4,3700.3,0.25252703]
[1753190035110,58.31201985,3700.4,3700.3,0.25252703]
[1753190035413,64.45094646,3700.4,3700.3,0.25252703]
[1753190035615,2.70333183,3699.2,3698.7,0.818]
[1753190035793,6.96233183,3699.2,3698.8,4.86956995]
[1753190036390,6.96233183,3699.2,3698.8,1.33356995]
[1753190036740,2.70345705,3699.0,3698.7,0.9524]
[1753190036938,4.259,3699.0,3698.5,0.1344]
[1753190037235,14.5,3698.9,3698.5,0.1344]
[1753190037394,4.258,3698.8,3698.5,0.1344]
[1753190037596,6.96160485,3698.8,3698.5,0.1344]
[1753190038036,4.258,3698.8,3698.5,0.1344]
[1753190038336,4.258,3698.8,3698.6,0.464]
[1753190038496,3.93362648,3698.8,3698.5,0.1344]
[1753190038701,3.93362648,3698.8,3698.6,0.464]
[1753190038934,3.93362648,3698.8,3698.5,0.49471664]
[1753190038935,3.93362648,3698.8,3698.7,0.464]
[1753190039137,0.7973,3699.8,3698.8,2.70351891]
[1753190039315,0.7973,3699.8,3698.8,3.5574547]
[1753190039510,0.7973,3699.8,3699.0,2.70339365]
[1753190039511,6.96097317,3699.7,3699.0,2.70339365]
[1753190039715,6.96097317,3699.7,3699.1,3.83983946]
[1753190040232,4.258,3699.7,3699.1,1.13648484]
[1753190040430,2.70302192,3699.6,3699.1,0.464]
[1753190040621,4.258,3699.5,3699.1,0.464]
[1753190040824,6.96107037,3699.5,3699.2,0.464]
[1753190041020,6.96107037,3699.5,3698.8,3.53046279]
[1753190041223,0.7,3699.2,3698.9,3.16749515]
[1753190041429,0.7,3699.2,3699.0,0.66980428]
[1753190041632,0.7,3699.2,3699.1,0.464]
[1753190043546,0.7,3699.2,3699.1,3.16736027]
[1753190043951,0.7,3699.2,3699.1,3.99616027]
[1753190045416,3.0,3700.1,3699.3,2.7031706]
[1753190045617,3.0,3700.0,3699.4,2.70308859]
[1753190045928,3.0,3700.0,3699.5,0.464]
[1753190046127,2.70279407,3699.9,3699.5,0.464]
[1753190046322,2.70291162,3699.8,3699.2,5.174]
[1753190046536,2.70299555,3699.6,3699.2,4.71]
[1753190046752,6.95899491,3699.6,3699.2,4.71]
[1753190046942,2.70321412,3699.3,3699.2,4.71]
[1753190047254,2.70337225,3699.1,3698.7,4.72]
[1753190047551,2.70337225,3699.1,3698.8,0.2527695]
[1753190047746,2.70329834,3699.2,3698.9,0.2527695]
[1753190047916,2.70336027,3699.1,3699.0,0.2527695]
[1753190048313,0.7,3699.3,3699.0,0.2527695]
[1753190048653,0.37567453,3699.3,3699.2,3.47458719]
[1753190048949,0.37567453,3699.3,3699.2,2.17755514]
[1753190049148,0.37567453,3699.3,3699.2,1.4880695]
[1753190049346,0.1344,3699.7,3699.2,1.4880695]
[1753190049554,0.1344,3699.7,3699.3,0.7167695]
[1753190049755,2.83732221,3699.7,3699.4,0.2527695]
[1753190050052,2.83734447,3699.7,3699.5,0.2527695]
[1753190050226,2.83732185,3699.7,3699.6,0.2527695]
[1753190051033,7.53972185,3699.7,3699.6,0.2527695]
[1753190051246,3.28472185,3699.7,3699.6,0.2527695]
[1753190051555,7.53872185,3699.7,3699.6,0.2527695]
[1753190051756,3.28472185,3699.7,3699.6,0.2527695]
[1753190051919,7.53872185,3699.7,3699.6,0.2527695]
[1753190053115,0.1344,3699.7,3699.6,0.2527695]
[1753190053456,2.70287475,3699.8,3699.6,0.7167695]
[1753190053622,4.254,3699.7,3699.6,0.464]
[1753190053954,6.95692185,3699.7,3699.6,0.25278869]
[1753190054254,4.254,3699.7,3699.6,0.25278869]
[1753190054458,2.70287812,3699.8,3699.6,0.25278869]
[1753190054613,2.7028488,3699.8,3699.7,0.25278869]
[1753190054818,9.9558488,3699.8,3699.7,0.25279647]
[1753190057949,9.9548488,3699.8,3699.7,0.25279647]
[1753190058131,5.7028488,3699.8,3699.7,0.25279647]
[1753190058453,9.9548488,3699.8,3699.7,0.25279647]
[1753190058660,7.252,3699.8,3699.7,0.25279647]
[1753190059682,14.5,3699.9,3699.7,0.25279647]
[1753190059829,6.9538488,3699.8,3699.5,0.829]
[1753190060155,0.1982235,3700.7,3699.8,2.70279616]
[1753190060156,3.5064482,3700.7,3699.8,2.70279616]
[1753190060322,3.5064482,3700.7,3699.9,0.69460334]
[1753190060323,0.1344,3700.3,3699.9,0.69460334]
[1753190060522,6.95357444,3700.2,3700.0,0.25290334]
[1753190060751,6.95357444,3700.2,3700.1,0.25290334]
[1753190061144,4.251,3700.2,3700.1,0.25290334]
[1753190061760,6.95355661,3700.2,3700.1,0.25290334]
[1753190061957,8.38249538,3700.2,3700.1,0.25290334]
[1753190063060,7.93259538,3700.2,3700.1,0.25290334]
[1753190063840,6.95355661,3700.2,3700.1,0.25290334]
[1753190064357,4.25,3700.2,3700.1,0.69460334]
[1753190064561,0.1344,3700.4,3700.1,0.69461925]
[1753190064866,4.249,3700.3,3700.2,0.25291925]
[1753190065027,4.249,3700.3,3700.2,0.69461925]
[1753190066061,6.95148358,3700.3,3700.2,0.25291925]
[1753190066260,4.249,3700.3,3700.2,0.25291925]
[1753190067035,4.248,3700.3,3700.2,0.25291925]
[1753190067263,6.95048358,3700.3,3700.2,0.25291925]
[1753190067570,2.70248358,3700.3,3700.2,0.25299128]
[1753190068063,6.95048358,3700.3,3700.2,0.25299128]
[1753190068267,11.74700697,3700.3,3700.2,0.25299128]
[1753190070189,7.49900697,3700.3,3700.2,0.25299128]
[1753190070390,11.74700697,3700.3,3700.2,0.25299128]
[1753190071877,11.29710697,3700.3,3700.2,0.25299128]
[1753190072262,11.74700697,3700.3,3700.2,0.25299128]
[1753190073051,11.29710697,3700.3,3700.2,0.25299128]
[1753190073375,2.7028563,3699.8,3699.5,0.4417]
[1753190073577,4.247,3699.7,3699.6,0.25294082]
[1753190073900,0.7927,3700.3,3699.7,0.4417]
[1753190073901,2.70257078,3700.2,3699.7,0.4417]
[1753190074085,0.002,3700.4,3699.9,0.7675]